Cogmind - Beta 15 @@@ ROGUE MODE // 2025.08.12 @ 13:31:57 Player: Mtal Result: Destroyed by YI-UF0 with YI-UF0's Doublenader Performance ------------- Evolutions (0) 0 Regions Visited (2) 400 Robots Destroyed (12) 60 Value Destroyed (236) 236 Prototype IDs (0) 0 Alien Tech Used (0) 0 Bonus (0) 0 TOTAL SCORE: 696 Bonus ------- None Cogmind --------- Core Integrity 0/250 Matter 300/300 Energy 100/100 System Corruption 10% Temperature Cool (0) Movement Walking (120) Location -10/Mines Parts ------- > --- POWER (1) -------- (None) > --- PROPULSION (2) --- Aluminum Leg > --- UTILITY (2) ------ Small Storage Unit > --- WEAPON (2) ------- (None) > --- INVENTORY (8) ---- Large Storage Unit Experimental Sensor Array Peak State ------------ > --- POWER ------------ Light Ion Engine > --- PROPULSION ------- Aluminum Leg > --- UTILITY ---------- Small Storage Unit Improved Terrain Scanner > --- WEAPON ----------- Grenade Launcher Mining Laser > --- INVENTORY -------- Large Storage Unit Experimental Sensor Array Small Laser [Rating: 9] Favorites ----------- Power Light Ion Engine Engine Light Ion Engine Propulsion Aluminum Leg Treads Light Treads Leg Aluminum Leg Utility Small Storage Unit Device Improved Terrain Scanner Storage Small Storage Unit Weapon Medium Laser Energy Gun Medium Laser Ballistic Gun Light Assault Rifle Launcher Grenade Launcher Special Weapon Mining Laser Build | -11 -10 -10 ------- Run | Yrd Mat Min Slots Evolved . | . . . Power . | . . . Propulsion . | . . . Utility . | . . . Weapon . | . . . Parts Attached 18 | 8 2 8 Power 4 | 1 1 2 Engine 4 | 1 1 2 Core . | . . . Reactor . | . . . Propulsion 5 | 4 . 1 Treads 2 | 2 . . Leg 3 | 2 . 1 Wheel . | . . . Hover . | . . . Flight . | . . . Utility 2 | 1 . 1 Device 1 | . . 1 Storage 1 | 1 . . Processor . | . . . Hackware . | . . . Protection . | . . . Artifact . | . . . Weapon 7 | 2 1 4 Energy Gun 3 | 1 . 2 Energy Cannon . | . . . Ballistic Gun 2 | 1 1 . Ballistic Cannon . | . . . Launcher 1 | . . 1 Special Weapon 1 | . . 1 Impact Weapon . | . . . Slashing Weapon . | . . . Piercing Weapon . | . . . Special Melee Weapon . | . . . Unidentified Prototypes . | . . . Corrupted Parts 1 | . . 1 System Corruption 10 | . . 10 Parts Lost 10 | . 2 8 Power 3 | . 1 2 Propulsion 1 | . 1 . Utility 1 | . . 1 Weapon 5 | . . 5 Highest Loss Streak 4 | . 2 4 To Critical Strikes . | . . . Average Backups 2 | 1 2 2 Power . | . . . Propulsion . | . . . Utility 1 | . . 1 Weapon . | . . . Tool/Special . | . . . Unused Backups 2 | . . 2 Power . | . . . Propulsion . | . . . Utility 2 | . . 2 Weapon . | . . . Tool/Special . | . . . Average Slot Usage (%) 65 | . 73 63 Engine 12 | . 12 12 Leg 5 | . 21 1 Device 8 | . . 11 Storage 14 | . 14 14 Energy Gun 9 | . 14 8 Ballistic Gun 2 | . 10 . Launcher 6 | . . 8 Special Weapon 4 | . . 6 Peak Build Rating 9 | 6 6 9 Average Rating 6 | 3 5 6 On Entrance 2 | . 6 2 Naked Turns . | . . . Heaviest Build 14 | 13 13 14 Greatest Support 40 | 40 20 10 Greatest Overweight (x) 4 | . 3 4 Average Overweight (x) 2 | . . 2 Largest Inventory Capacity 8 | 8 8 8 Average Capacity 7 | 6 8 8 Most Carried 4 | 4 4 4 Average Carried 2 | 1 2 2 Final Capacity 8 | 8 8 8 Final Carried 3 | 3 1 2 Class Distribution -------------------- 91% | Mutant 8% | Scavenger-Mutant Dominant Class ---------------- Mutant | -10/Materials Mutant | -10/Mines Resources | -11 -10 -10 ----------- Run | Yrd Mat Min Matter Collected 398 | 185 80 133 Remotely . | . . . Salvage Created 366 | . 111 255 Parts 19 | . 7 12 Haulers Intercepted . | . . . Recyclers Shooed 2 | 1 1 . Parts Field Recycled . | . . . Retrieved Matter . | . . . Parts Self-Destructed . | . . . Prevented . | . . . Kills | -11 -10 -10 ------- Run | Yrd Mat Min Combat Hostiles Destroyed 9 | . 4 5 Guns 6 | . 4 2 Cannons 1 | . . 1 AOE 2 | . . 2 Classes Destroyed 6 | . 3 3 Tunneler 2 | . . 2 Recycler 1 | . . 1 Watcher 1 | . 1 . Swarmer 3 | . 3 . Grunt 5 | . 1 4 Assembled 1 | . . 1 Best Kill Streak 5 | . 5 4 Combat Bots Only 4 | . 4 2 Max Kills in Single Turn 2 | . 1 2 Gunslinging . | . . . Exploded 2 | . . 2 Melee . | . . . Uniques/NPCs Destroyed . | . . . Combat | -11 -10 -10 -------- Run | Yrd Mat Min Hostile Shots Fired 81 | . 48 33 Missed 19 | . 10 9 Hits 62 | . 38 24 Projectile 62 | . 38 24 AOE 6 | . . 6 Damage Taken 908 | . 409 499 Core 262 | . 122 140 Absorbed by Shields . | . . . Core Remaining (%) 100 | 100 . . Volleys Fired 50 | . 14 36 Largest 2 | . 2 2 Hottest 100 | . 70 100 Shots Fired 67 | . 28 39 Gun 44 | . 28 16 Cannon . | . . . Launcher 4 | . . 4 Special 19 | . . 19 Kinetic 14 | . 14 . Thermal 49 | . 14 35 Explosive 4 | . . 4 Electromagnetic . | . . . Robot Hit Streak 7 | . 5 7 Robot Miss Streak 4 | . 4 1 Penetration Max . | . . . Secondary Targets . | . . . Shots Hit Robots 29 | . 13 16 Core Hits 23 | 3 8 12 Critical Kills . | . . . Critical Parts Destroyed . | . . . Critical Strikes 1 | . 1 . Burn 1 | . 1 . Melee Attacks . | . . . Impact . | . . . Slashing . | . . . Piercing . | . . . Sneak Attacks . | . . . Combat Hostiles . | . . . Follow-up Attacks . | . . . Damage Inflicted 525 | 6 137 382 Guns 265 | . 137 128 Cannons . | . . . Explosions 228 | . . 228 Melee . | . . . Ramming 8 | 6 . 2 Kinetic 37 | . 37 . Thermal 252 | . 100 152 Explosive 228 | . . 228 Electromagnetic . | . . . Impact . | . . . Slashing . | . . . Piercing . | . . . Highest Corruption 10 | . . 10 Average Corruption 10 | . . 10 Corruption Purged . | . . . Corruption Blocked . | . . . Effects 1 | . . 1 Data Loss (minor) 1 | . . 1 Overload Shots . | . . . Overflow Damage 7 | . . 7 Projectiles . | . . . Explosions 7 | . . 7 Melee . | . . . Knockbacks . | . . . Impact . | . . . Kinetic . | . . . Secondary . | . . . Self-Inflicted Damage 58 | . . 58 Shots 2 | . . 2 Rammed 1 | . . 1 Targets Rammed 8 | 6 1 1 Kicked 7 | 6 1 . Crushed . | . . . Highest Temperature 238 | . 238 40 Average Temperature 47 | . 116 15 Received Heat Transfer 249 | . 153 96 Siege Activations . | . . . Martial Activations . | . . . Shielding Activations . | . . . Robots Disrupted . | . . . Combat Hostiles . | . . . Robots Corrupted . | . . . Combat Hostiles . | . . . Parts Fried . | . . . Impact Corruptions . | . . . Robots Melted . | . . . Combat Hostiles . | . . . Parts Melted 3 | . 1 2 Heat Transferred 732 | . 370 362 Parts Sabotaged . | . . . Parts Stolen . | . . . Parts Stripped . | . . . Power Chain Reactions . | . . . Alert | -11 -10 -10 ------- Run | Yrd Mat Min Maximum Alert Level . | . . . Low Security (%) 100 | 100 100 100 Level 1 . | . . . Level 2 . | . . . Level 3 . | . . . Level 4 . | . . . Level 5 . | . . . High Security . | . . . Max Security . | . . . Peak Influence 80 | . 80 49 Initial 5 | . . 5 Average 11 | . 35 5 Influence Increases 228 | . 105 123 Destroy 0b10 Robot/C 160 | . 80 80 Destroy 0b10 Robot/NC 20 | . 5 15 Destroy Leader 12 | . 12 . Successful Hack 8 | . 8 . Destroy Structure 28 | . . 28 Influence Decreases 228 | . 90 138 Entered New Map 10 | . . 10 Time Decay 131 | . 70 61 Lost Part 87 | . 20 67 Squads Dispatched 1 | . 1 . Investigation . | . . . Extermination . | . . . Reinforcement 1 | . 1 . Assault . | . . . Garrison . | . . . Intercept . | . . . Searches Triggered . | . . . Construction Impeded . | . . . Haulers Reinforced . | . . . Active Scanning Responses . | . . . Cargo Convoy Interrupts . | . . . Stealth | -11 -10 -10 --------- Run | Yrd Mat Min Distress Signals 1 | . . 1 Communications Jammed . | . . . Distress Signals . | . . . Times Spotted 16 | . 10 6 Peak Tracking Total 6 | . 6 2 Tactical Retreats . | . . . Traps | -11 -10 -10 ------- Run | Yrd Mat Min Traps Triggered 3 | . 3 . Indirectly . | . . . Trap Hack Attempts . | . . . Triggered . | . . . Disarmed . | . . . Reprogrammed . | . . . Reused . | . . . Traps Extracted . | . . . Installed . | . . . Triggered . | . . . Machines | -11 -10 -10 ---------- Run | Yrd Mat Min Machines Disabled . | . . . Max in Single Turn . | . . . Machines Repaired . | . . . Machines Dismantled . | . . . Machines Sabotaged . | . . . Overloaded Fab Kills . | . . . Hacking | -11 -10 -10 --------- Run | Yrd Mat Min Machines Accessed 1 | . 1 . Terminals 1 | . 1 . Fabricators . | . . . Repair Stations . | . . . Recycling Units . | . . . Scanalyzers . | . . . Garrison Access . | . . . Total Hacks 2 | . 2 . Successful 1 | . 1 . Failed 1 | . 1 . Catastrophic . | . . . Database Lockouts . | . . . Manual 2 | . 2 . Terminals 2 | . 2 . Fabricators . | . . . Repair Stations . | . . . Recycling Units . | . . . Scanalyzers . | . . . Garrison Access . | . . . Terminal Hacks 1 | . 1 . Branch Access Points 1 | . 1 . Fabricator Hacks . | . . . Repair Station Hacks . | . . . Recycling Unit Hacks . | . . . Scanalyzer . | . . . Garrison Access Hacks . | . . . Unauthorized Hacks . | . . . Terminals . | . . . Fabricators . | . . . Repair Stations . | . . . Recycling Units . | . . . Scanalyzers . | . . . Garrison Access . | . . . Data Cores Recovered . | . . . Used . | . . . Hacking Detections 1 | . 1 . Full Trace Events . | . . . Feedback Events . | . . . Feedback Blocked . | . . . Robot Schematics Acquired . | . . . Robots Built . | . . . Authchips . | . . . Time . | . . . Total Robot Build Rating . | . . . Part Schematics Acquired . | . . . Parts Built . | . . . Authchips . | . . . Time . | . . . Total Part Build Rating . | . . . Parts Repaired . | . . . Time . | . . . Parts Recycled . | . . . Recycled Matter . | . . . Retrieved Matter . | . . . Retrieved Components . | . . . Parts Scanalyzed . | . . . Part Schematics Acquired . | . . . Parts Damaged . | . . . Bothacking | -11 -10 -10 ------------ Run | Yrd Mat Min Used RIF Installer . | . . . Robots Hacked . | . . . Non-combat . | . . . Combat . | . . . Robot Hacks Applied . | . . . Relay Couplers Released . | . . . Fabnet Peak Effective % . | . . . Robots Rewired . | . . . Allies Hacked . | . . . Hacks Repelled . | . . . Allies | -11 -10 -10 -------- Run | Yrd Mat Min Total Allies . | . . . Largest Group . | . . . Highest-Rated Group . | . . . Highest-Rated Ally . | . . . Total Orders . | . . . Ally Attacks . | . . . Total Damage . | . . . Kills . | . . . Allies Corrupted . | . . . Allies Melted . | . . . Intel | -11 -10 -10 ------- Run | Yrd Mat Min Active Infowar (turns) 648 | . . 648 Terrain 648 | . . 648 Robot Analysis Total . | . . . Derelict Logs Recovered 1 | . . 1 Drone Launches . | . . . Drone Recoveries . | . . . Exploration | -11 -10 -10 ------------- Run | Yrd Mat Min Turns Passed 1098 | 78 219 801 Spaces Moved 491 | 47 124 320 Core 313 | 4 38 271 Treads 7 | 5 2 . Legs 171 | 38 84 49 Wheels . | . . . Hover . | . . . Flight . | . . . Fastest Speed 50 | 50 120 120 Average Speed 181 | 118 137 207 Slowest Speed 250 | 160 200 250 Overloaded Moves . | . . . Propulsion Burnouts . | . . . Robots Hopped . | . . . Potential Cave-ins . | . . . Cave-ins Triggered . | . . . Exploration Rate (%) 30 | 4 34 52 Regions Visited 2 Branch Regions 1 Pre-discovered Areas . | . . . Known Exits Taken 1 | . 1 . Unknown Exits Taken 1 | 1 . . Scrap Searched . | . . . Spaces Dug 1 | . . 1 Terrain Destroyed 28 | . . 28 Melee . | . . . Projectile 1 | . . 1 AOE 27 | . . 27 Terrain Rammed . | . . . Walls Destroyed . | . . . Machines Disabled . | . . . Actions | -11 -10 -10 --------- Run | Yrd Mat Min Total 587 | 65 146 376 Wait 5 | . 1 4 Move 489 | 46 123 320 Hop . | . . . Pick Up 11 | 4 1 6 Fast Attach 12 | 6 3 3 Attach 9 | 1 3 5 Detach . | . . . Swap 1 | 1 . . Drop 1 | 1 . . Fire 50 | . 14 36 Melee . | . . . Ram 1 | . . 1 Kick 7 | 6 1 . Crush . | . . . Escape Stasis . | . . . Rewire 1 | . . 1 Trap . | . . . Miscellaneous . | . . . Route ------- -11/Scrapyard -10/Materials (discovered 2 exits: *Min x2) -10/Mines History --------- Turn | Location | Event 19 | -11/Scrapyard | Discovered new exit (range 16) 79 | -11/Scrapyard | Entered Materials 199 | -10/Materials | Identified exit to Mines 298 | -10/Materials | Entered Mines 313 | -10/Mines | Build established: Mutant 492 | -10/Mines | Found a damaged Exp. Sensor Array with a note attached 496 | -10/Mines | Found Prototype Device 504 | -10/Mines | YI-UF0 nonchalantly dropped a Grenade Launcher on the ground 514 | -10/Mines | Learned 2 Materials zone layouts 645 | -10/Mines | Excavation squad dispatched 645 | -10/Mines | A large section of the Mines collapsed 895 | -10/Mines | Excavation squad dispatched 975 | -10/Mines | Core integrity fell below 50% 1043 | -10/Mines | System corruption reached 10% 1068 | -10/Mines | Lost 4 parts (1p1u2w) 1099 | -10/Mines | Destroyed by YI-UF0 with YI-UF0's Doublenader Last Messages --------------- (+10). 01043_ The unstable cave ceiling collapses. 01045_ System corrupted: Component data lost. 01047_ Acquired 40 matter. 01048_ K-01 Serf collects debris. 01051_ The unstable cave ceiling collapses. 01052_ K-01 Serf collects debris. 01055_ U-05 Engineer builds a Wall. 01056_ K-01 Serf collects debris. 01059_ U-05 Engineer lays Concrete. 01061_ K-01 Serf collects debris. 01061_ U-05 Engineer lays Concrete. 01063_ K-01 Serf collects debris. 01064_ U-05 Engineer lays Concrete. 01065_ U-05 Engineer builds a Wall. 01078_ Acquired 32 matter. 01095_ Lgt. Ion Engine destroyed. 01097_ Sml. Laser destroyed. 01098_ YI-UF0 mumbles something. 01099_ Sml. Laser destroyed. Map ----- +----------------------------------------------------+ | ###????#????????????????????????????? | | #????####???????????????????????????? | | ??#?## ##??????????????????????????? | | #???# ##?????????????????????????? | | ??#?# ###???????????????????????? | | ##?## ##??????????????????????? | | ### #??????????????????????? | | ##???#?????????????????? | | ##????#????????????????? | | ##????????????????????? | | ### #????????????????????? | | ####?## #????????????????????? | | ##?????## ##??????? ????? #?????? | | ##??????## #?????????????? #?????? | | #??#???## ##???????? ????# ##????? | | ????????# /##?#?????????### ##???? | | ? ?#????# ##?????? ????? #???? | | ???????## !##????????? ?? ????? | | ???????#= ####????????? #????? | | #????# = #?????????? #????? | | ? ###### ###???????## #????? | | ???# #????#### # #?????? | | ??## ##???# #??????? | | ???# ### # ### # #???????? | | ???# #?## g#???????? | | ???# ##?# @ #???????? | | #?? #### ## #???????? | | # #?## # #???????? | | ???### # # #??????? | | """ ?????## # ## #?????? | | """ ??###### % #?????? | | """ ?## = ## # #?????? | | #??# #### #?# ?????? | | ?# ##?# #?# ## # # ????? | | ??# #?# ### ##?#? # ???? | | ?## ### #???#? ???? | | ## ### #????? #??? | | # #####?#### ##???? #??? | | #????????## #???? ???? | | #?????#???## #????? ??????? | | #??#??#????# #?##??????????? | | # ##?????????# #?????????????? | | ## ##??????#?? ##?????????????? | | ?# ##????#???? #??????????????? | | ## #????????? ??????????????? | | ######???## ???????#??????? | | ## #?????### ?????????????? | | ?# ### ##??????## ???????#?????? | | ## #?# ####?????## #????????????? | | ## #?# #????#?# #?????????????? | +----------------------------------------------------+ Best States ------------- Heat Dissipation 25 Energy Generation 10 Energy Capacity 250 Matter Stores 298 Matter Capacity 300 Sight Range 16 Terrain Scan Range 16 Terrain Scan Density 10 Evasion (%) 55 Recoil Reduction 2 Item Schematics ----------------- None Robot Schematics ------------------ None Fabricated ------------ Nothing Repaired ---------- Nothing Alien Tech Used ----------------- None Achievements -------------- None Challenges ------------ None Game ------ Seed FireConstructArachnoskeleton Manual? 0 Play Time 00:08:17 Cumulative 1.3 hours Start 2025.08.12 @ 13:23:31 End 2025.08.12 @ 13:31:57 Sessions 1 Manual Loads 0 Difficulty Rogue Special Mode None Game No. 4 Rogue 4 Adventurer 0 Explorer 0 Win Type - Total 0 Types 0/0/0/0/0/0/0/0/0/0 Lore% 1 Gallery% 5 Achievement% 10 Wizard Run 0 Options --------- Layout 1 ASCII 0 Keyboard 0 Movement Numpad Keybinds 0 Fullscreen 2 Font 24/Smallcaps Map View 50x35 Zoom Use 0% Tactical HUD 1 Map Filters NONE Filters NONE Steam 1 RUN: f0dff577-e984-4e9a-9709-b8d103dca9cc